bitfinex-derivatives/quotes_ETHF0:USTF0_20250607
["timestamp","ask_amount","ask_price","bid_price","bid_amount"]
[1749308700464,4.49106161,2518.1,2517.6,0.00596161]
[1749308700865,0.79395,2517.7,2517.6,0.00596161]
[1749308701260,0.79394,2517.8,2517.6,0.00596161]
[1749308701466,3.21376161,2518.1,2517.6,0.00596161]
[1749308701662,0.79389,2517.9,2517.7,0.79393]
[1749308702562,0.79388,2518.0,2517.7,0.79393]
[1749308702863,0.79387,2518.0,2517.8,0.7939]
[1749308703260,0.79389,2517.9,2517.7,0.79394]
[1749308703466,0.00596161,2518.1,2518.0,0.79386]
[1749308703866,0.00596161,2518.1,2518.0,2.16136]
[1749308704066,0.79979161,2518.1,2517.9,4.00167]
[1749308704270,0.79979161,2518.1,2517.9,0.79387]
[1749308704872,0.00596161,2518.1,2517.7,0.6374]
[1749308705164,0.7939,2517.9,2517.7,1.43134]
[1749308705668,1.33586161,2518.1,2517.7,0.6374]
[1749308705867,1.33586161,2518.1,2517.6,3.21376161]
[1749308706068,0.79395,2517.7,2517.6,0.00596161]
[1749308706867,0.79394,2517.8,2517.6,0.79993161]
[1749308707566,0.7939,2517.9,2517.6,0.00596161]
[1749308707763,0.6759,2518.0,2517.6,0.00596161]
[1749308707967,0.79980161,2518.1,2517.9,0.79389]
[1749308708164,0.00596161,2518.1,2518.0,0.79386]
[1749308708471,0.79981161,2518.1,2517.8,1.3189]
[1749308708668,0.79386,2518.0,2517.8,2.1128]
[1749308708875,0.79386,2518.0,2517.9,0.79389]
[1749308709062,0.00596161,2518.1,2517.7,0.79392]
[1749308709262,0.00596161,2518.1,2517.6,3.21376161]
[1749308709575,0.7939,2517.9,2517.6,0.00596161]
[1749308709969,0.79392,2517.8,2517.6,0.00596161]
[1749308710368,0.79391,2517.9,2517.7,0.79393]
[1749308710575,3.2078,2517.9,2517.6,0.00596161]
[1749308710871,0.79395,2517.7,2517.6,0.00596161]
[1749308711060,5.79395,2517.7,2517.6,0.00596161]
[1749308712567,0.79395,2517.7,2517.6,0.00596161]
[1749308716072,5.79395,2517.7,2517.6,0.00596161]
[1749308716769,0.79407,2517.4,2516.9,3.8842]
[1749308716964,3.29735,2517.8,2517.1,0.79411]
[1749308716965,3.2078,2517.5,2517.1,0.79411]
[1749308717173,0.79409,2517.3,2517.2,0.79411]
[1749308717565,0.79409,2517.3,2517.1,0.79412]
[1749308717765,2.6829,2517.4,2516.9,3.89016161]
[1749308718163,3.47696,2517.4,2517.2,0.79409]
[1749308718367,2.08506,2517.4,2517.2,0.79409]
[1749308719281,1.291,2517.4,2517.1,0.79413]
[1749308719573,3.2078,2517.5,2517.4,0.79405]
[1749308719778,0.79405,2517.4,2517.3,0.79406]
[1749308720378,4.00184,2517.5,2517.4,0.79405]
[1749308721076,3.2078,2517.5,2517.4,0.79405]
[1749308721778,4.00182,2517.5,2517.4,0.79405]
[1749308723174,3.2078,2517.5,2517.4,0.79405]
[1749308725380,5.12711299,2517.5,2517.4,0.79405]
[1749308725778,4.33309299,2517.5,2517.4,0.79405]
[1749308725972,1.12529299,2517.5,2517.4,0.79405]
[1749308726174,0.79393,2517.8,2517.6,0.79398]
[1749308726379,0.79393,2517.8,2517.7,1.3459]
[1749308726582,1.12621205,2517.9,2517.7,1.3459]
[1749308726788,1.12621205,2517.8,2517.7,2.13985]
[1749308726979,0.79389,2517.9,2517.8,0.79392]
[1749308727483,1.92001883,2518.0,2517.9,0.79388]
[1749308727688,1.92003158,2518.0,2517.9,0.79388]
[1749308727882,0.79389,2517.9,2517.8,0.7939]
[1749308728085,1.12615158,2517.9,2517.8,0.7939]
[1749308729888,1.92004158,2517.9,2517.7,1.3459]
[1749308730181,0.00596161,2518.1,2517.7,1.3459]
[1749308730182,1.12615158,2517.8,2517.7,2.13985]
[1749308730378,0.00596161,2518.1,2518.0,0.79386]
[1749308730874,1.13245343,2518.1,2518.0,0.79386]
[1749308731782,0.00596161,2518.1,2518.0,0.79386]
[1749308731985,0.00596161,2518.1,2518.0,5.79386]
[1749308733180,4.5407,2519.1,2518.0,5.0]
[1749308733376,1.1261646,2519.0,2518.8,0.79358]
[1749308733580,1.3329,2519.1,2519.0,0.79354]
[1749308733785,3.25173933,2519.1,2518.7,1.3332]
[1749308733984,1.12532933,2519.0,2518.9,0.79357]
[1749308734485,1.91886933,2519.0,2518.9,0.79357]
[1749308734681,0.79354,2519.0,2518.9,0.79357]
[1749308734884,1.3329,2519.1,2518.7,2.13279161]
[1749308735087,0.79359,2518.9,2518.7,2.13279161]
[1749308735288,0.79356,2519.0,2518.7,1.33916161]
[1749308735887,0.79356,2519.0,2518.8,0.79359]
[1749308737189,0.00596161,2519.2,2518.8,0.79359]
[1749308737390,0.79356,2519.0,2518.8,0.79359]
[1749308737889,2.03626161,2519.2,2519.0,0.79354]
[1749308737890,0.79353,2519.1,2519.0,0.79354]
[1749308738084,0.79353,2519.1,2518.7,1.33916161]
[1749308738286,0.79353,2519.1,2518.9,0.79355]
[1749308738482,0.00596161,2519.2,2519.1,0.79351]
[1749308742494,3.2078,2519.7,2519.6,0.79335]
[1749308742693,1.2937,2520.1,2519.3,1.98357]
[1749308742694,0.79327,2519.9,2519.8,0.79329]
[1749308742997,0.79325,2520.0,2519.8,0.79329]
[1749308743201,1.2937,2520.1,2519.6,1.98339]
[1749308743396,0.79323,2520.0,2519.9,0.79324]
[1749308744298,2.08692,2520.1,2519.9,0.79324]
[1749308744699,0.79323,2520.0,2519.9,0.79324]
[1749308744893,2.08692,2520.1,2519.9,0.79324]
[1749308745098,2.08692,2520.1,2520.0,0.79323]
[1749308745701,4.00695161,2520.2,2520.0,0.79323]
[1749308745894,4.00694161,2520.2,2520.0,0.7932]
[1749308746298,3.21376161,2520.2,2520.1,0.7932]
[1749308746498,4.00692161,2520.2,2520.0,0.79321]
[1749308746796,4.00692161,2520.2,2519.8,1.3647]
[1749308747298,0.7932,2520.1,2519.8,1.3647]
[1749308747799,0.7932,2520.1,2520.0,0.79323]
[1749308747999,3.21376161,2520.2,2519.5,3.2078]
[1749308748305,0.79335,2519.6,2519.5,0.79335]
[1749308748805,1.3897,2519.8,2519.3,0.79343]
[1749308749006,3.2078,2519.6,2519.1,2.071]
[1749308749202,3.2078,2519.6,2519.1,0.7935]
[1749308749397,0.79346,2519.3,2519.1,0.7935]
[1749308749604,0.79347,2519.3,2519.0,0.6454]
[1749308749905,1.3107,2519.5,2519.0,0.6454]
[1749308750104,0.79346,2519.3,2519.2,0.79347]
[1749308751408,0.79345,2519.3,2519.2,0.79347]
[1749308753207,0.79344,2519.4,2519.2,0.79347]
[1749308753511,0.79344,2519.4,2519.3,0.79345]
[1749308754009,1.3107,2519.5,2519.0,0.6454]
[1749308754311,0.79349,2519.2,2519.1,0.7935]
[1749308754506,0.79347,2519.3,2519.2,0.79347]
[1749308755303,0.79349,2519.2,2519.1,0.7935]
[1749308755705,0.79353,2519.1,2519.0,0.79353]
[1749308755922,2.0465,2519.1,2519.0,0.79353]
[1749308756909,0.6936,2519.1,2519.0,0.79353]
[1749308759114,0.6832,2519.2,2519.1,0.79351]
[1749308764116,0.6826,2519.4,2519.3,0.79345]
[1749308764315,1.81084489,2519.4,2519.3,0.79345]
[1749308765622,1.12824489,2519.4,2519.3,0.79345]
[1749308766315,0.6853,2519.7,2519.6,0.79335]
[1749308766514,1.81377309,2519.7,2519.6,0.79335]
[1749308770220,1.12847309,2519.7,2519.6,0.79335]
[1749308770520,1.12920698,2519.7,2519.5,0.6655]
[1749308770718,3.8602,2519.9,2519.8,0.79329]
[1749308770918,4.98937252,2519.9,2519.8,0.79329]
[1749308771117,1.12917252,2519.9,2519.8,0.79329]
[1749308771528,1.12917252,2519.9,2519.8,2.14179]
[1749308773424,1.12917252,2519.9,2519.8,0.79329]
[1749308774022,0.79329,2519.8,2519.7,3.2078]
[1749308774427,1.92247726,2519.8,2519.7,3.2078]
[1749308774625,2.61057726,2519.8,2519.7,3.2078]
[1749308775232,0.79345,2519.3,2519.2,0.6688]
[1749308775930,0.79345,2519.3,2519.2,0.79348]
[1749308776428,0.79349,2519.2,2519.1,0.7935]
[1749308776630,5.28241,2519.5,2519.0,3.2078]
[1749308776826,1.12991749,2519.4,2519.0,4.5943]
[1749308777030,0.79343,2519.4,2519.3,0.79343]
[1749308777229,1.92332957,2519.4,2519.3,0.79343]
[1749308777832,1.12989957,2519.4,2519.3,0.79343]
[1749308778233,0.79345,2519.3,2519.2,0.79347]
[1749308778434,1.92334957,2519.3,2519.1,0.79349]
[1749308778732,0.79345,2519.3,2519.2,0.79348]
[1749308779233,1.92390803,2519.3,2519.2,0.79348]
[1749308779629,0.79345,2519.3,2519.2,0.79348]
[1749308780228,0.79344,2519.4,2519.2,0.79348]
[1749308780430,4.0012,2519.5,2519.0,4.5943]
[1749308780630,1.13043172,2519.4,2519.3,0.79345]
[1749308780840,0.79349,2519.2,2519.1,0.79349]
[1749308781929,0.79351,2519.1,2519.0,4.00133]
[1749308782238,0.6833,2519.1,2519.0,4.00133]
[1749308782835,1.47681,2519.1,2519.0,4.00133]
[1749308783041,0.6833,2519.1,2519.0,4.00133]
[1749308787038,1.47681,2519.1,2519.0,4.00133]
[1749308787239,1.47681,2519.1,2519.0,3.2078]
[1749308787741,1.47681,2519.1,2519.0,4.00134]
[1749308788042,1.47681,2519.1,2519.0,3.2078]
[1749308788530,1.81292494,2519.1,2518.8,0.6926]
[1749308788840,0.79357,2518.9,2518.8,0.79358]
[1749308789541,0.79356,2519.0,2518.8,0.79358]
[1749308789742,2.6527,2519.1,2518.8,0.79358]
[1749308789942,1.92299377,2519.0,2518.8,0.79358]
[1749308790145,0.79356,2519.0,2518.9,0.79357]
[1749308790338,1.9229947,2519.0,2518.9,0.79357]
[1749308790643,0.7936,2518.8,2518.7,0.79959161]
[1749308791141,0.79359,2518.9,2518.8,0.7936]
[1749308791341,1.92287563,2518.9,2518.8,0.7936]
[1749308791539,0.7936,2518.8,2518.7,0.79958161]
[1749308792036,0.79359,2518.9,2518.8,0.79359]
[1749308792539,0.7936,2518.8,2518.7,0.79957161]
[1749308792745,0.7936,2518.8,2518.7,0.00596161]
[1749308793047,0.7936,2518.8,2518.7,0.79960161]
[1749308793840,2.10522,2519.1,2519.0,0.79354]
[1749308794042,1.98335,2519.7,2519.0,0.79354]
[1749308794043,3.2078,2519.6,2519.1,1.98378]
[1749308794241,1.12765191,2519.5,2519.4,0.79339]
[1749308794444,3.2078,2519.6,2519.5,0.79338]
[1749308795745,0.79323,2520.0,2519.5,4.00118]
[1749308796047,0.6696,2520.1,2520.0,0.79323]
[1749308796242,1.79693497,2520.1,2520.0,0.79323]
[1749308797746,2.59012497,2520.1,2520.0,0.79323]
[1749308797937,1.79693497,2520.1,2520.0,0.79323]
[1749308798343,0.00596161,2520.2,2520.1,0.79319]
[1749308801850,0.00596161,2520.2,2520.1,4.00099]
[1749308804754,0.00596161,2520.2,2520.1,0.79319]
[1749308806655,0.00596161,2520.2,2519.8,3.2078]
[1749308806656,1.98891161,2520.2,2519.8,3.2078]
[1749308806948,0.79319,2520.1,2520.0,0.79321]
[1749308807253,0.79914161,2520.2,2520.0,0.79321]
[1749308807555,0.79914161,2520.2,2520.1,0.79319]
[1749308807754,0.79319,2520.1,2520.0,0.79321]
[1749308808149,1.48289,2520.1,2520.0,0.79321]
[1749308808349,0.79329,2519.8,2519.5,3.2078]
[1749308808653,0.79333,2519.7,2519.5,3.2078]
[1749308808851,1.2722,2520.0,2519.5,5.19123]
[1749308809052,0.6897,2520.1,2519.6,3.31645]
[1749308809353,0.79323,2520.0,2519.9,0.79324]
[1749308810255,1.48292,2520.1,2520.0,0.79323]
[1749308810458,0.6897,2520.1,2520.0,0.79323]
[1749308811656,1.48289,2520.1,2520.0,0.79323]
[1749308811852,0.79323,2520.0,2519.9,0.79323]
[1749308812050,1.4829,2520.1,2520.0,0.79323]
[1749308813961,0.6897,2520.1,2520.0,0.79323]
[1749308814856,0.7933,2519.8,2519.7,0.7933]
[1749308815060,1.2621,2520.0,2519.5,3.2078]
[1749308815355,1.2621,2520.0,2519.7,0.79329]
[1749308815356,0.79328,2519.9,2519.7,0.79329]
[1749308815561,0.79328,2519.9,2519.5,3.2078]
[1749308815761,0.79323,2520.0,2519.9,0.79323]
[1749308817161,4.69072,2520.1,2520.0,0.79322]
[1749308817962,0.79323,2520.0,2519.9,0.79323]
[1749308818357,0.79326,2519.9,2519.8,1.43806]
[1749308819163,0.79325,2520.0,2519.9,0.79325]
[1749308819365,0.79326,2519.9,2519.8,1.43807]
[1749308820064,0.79335,2519.6,2519.5,3.2078]
[1749308820271,0.79338,2519.5,2519.4,0.6589]
[1749308820567,0.79348,2519.2,2519.1,0.6589]
[1749308820958,0.79355,2519.0,2518.7,0.00596161]
[1749308821158,0.79355,2519.0,2518.9,0.79357]
[1749308821864,0.79359,2518.9,2518.7,0.00596161]
[1749308822164,4.0014,2518.8,2518.7,0.00596161]
[1749308822464,3.8865,2518.8,2518.7,0.79959161]
[1749308822765,0.6787,2518.8,2518.7,0.79959161]
[1749308823460,2.66816,2519.4,2518.7,0.00596161]
[1749308823461,3.8924,2519.4,2518.7,0.00596161]
[1749308823666,0.6481,2519.3,2519.2,0.79348]
[1749308823964,1.44154,2519.3,2519.2,0.79348]
[1749308824171,0.6481,2519.3,2519.2,0.79348]
[1749308824664,1.44154,2519.3,2519.2,0.79348]
[1749308825367,0.6481,2519.3,2519.2,0.79348]
[1749308826064,3.2078,2519.7,2519.0,3.2078]
[1749308826268,0.7934,2519.5,2519.4,0.7934]
[1749308827274,0.79341,2519.4,2519.3,0.79343]
[1749308827462,0.7934,2519.5,2519.3,0.79343]
[1749308827763,0.6604,2519.6,2518.8,0.79359]
[1749308827764,6.31838668,2519.4,2518.8,0.79359]
[1749308827969,0.79355,2519.0,2518.8,0.7936]
[1749308828266,0.79355,2519.0,2518.8,0.79358]
[1749308828469,0.6884,2519.3,2518.8,0.79358]
[1749308828470,0.6604,2519.2,2518.8,1.98401]
[1749308828671,0.6604,2519.2,2519.1,0.79351]
[1749308828966,4.00114,2519.7,2519.1,1.98374]
[1749308829166,0.79342,2519.4,2519.3,0.79343]
[1749308829466,0.678,2519.6,2519.2,0.79345]
[1749308829662,0.79347,2519.2,2519.1,0.6966]
[1749308830262,0.79345,2519.3,2519.1,0.79348]
[1749308830471,0.79345,2519.3,2519.2,0.79347]
[1749308830763,2.0223,2519.6,2519.1,0.79347]
[1749308830973,3.2078,2519.4,2518.9,1.42993]
[1749308831171,0.79352,2519.1,2519.0,0.79352]
[1749308831372,1.3345,2519.3,2519.0,0.79352]
[1749308831373,0.79348,2519.2,2519.0,0.79352]
[1749308831672,0.79349,2519.1,2519.0,0.79352]
[1749308832175,0.79352,2519.0,2518.9,0.6364]
[1749308832472,0.79358,2518.8,2518.7,0.00596161]
[1749308832676,0.79358,2518.8,2518.7,0.79958161]
[1749308833471,0.79358,2518.9,2518.8,0.79358]
[1749308834671,4.00134,2519.0,2518.9,0.79355]
[1749308834968,3.2078,2519.0,2518.8,0.79357]
[1749308835170,0.79356,2518.9,2518.8,0.79357]
[1749308835561,0.79357,2518.9,2518.7,0.79955161]
[1749308835762,0.79357,2518.9,2518.8,0.79358]
[1749308836963,0.79357,2518.9,2518.7,0.00596161]
[1749308837172,0.79357,2518.9,2518.8,0.79358]
[1749308839765,0.79357,2518.9,2518.7,0.00596161]
[1749308839766,0.79359,2518.8,2518.7,0.00596161]
[1749308839971,2.76369,2518.8,2518.7,0.00596161]
[1749308840367,1.44749,2518.8,2518.7,0.00596161]
[1749308840874,1.9701,2518.8,2518.7,0.79958161]
[1749308841567,2.76369,2518.8,2518.7,0.79958161]
[1749308842373,1.44749,2518.8,2518.7,0.79958161]
[1749308842969,0.6539,2518.8,2518.7,0.79958161]
[1749308843573,1.44749,2518.8,2518.7,0.79958161]
[1749308849479,2.60006196,2518.8,2518.7,0.79958161]
[1749308851881,1.80647196,2518.8,2518.7,0.79958161]
[1749308852583,2.60006196,2518.8,2518.7,0.79958161]
[1749308852979,1.80647196,2518.8,2518.7,0.79958161]
[1749308854175,2.60006196,2518.8,2518.7,0.79958161]
[1749308854484,1.80647196,2518.8,2518.7,0.79958161]
[1749308854983,0.6539,2518.8,2518.7,0.79958161]
[1749308855185,1.80655926,2518.8,2518.7,0.79958161]
[1749308856682,2.60014926,2518.8,2518.7,0.79958161]
[1749308858188,1.80655926,2518.8,2518.7,0.79958161]
[1749308858382,7.9338,2519.5,2518.7,3.21376161]
[1749308858683,0.6631,2519.7,2519.6,0.79333]
[1749308858878,1.15313975,2519.7,2519.6,0.79333]
[1749308859078,4.726,2519.8,2519.7,0.7933]
[1749308859281,5.87899886,2519.8,2519.7,0.7933]
[1749308859578,4.726,2519.8,2519.7,0.7933]
[1749308861679,0.79322,2520.0,2519.9,0.79324]
[1749308861877,1.94482278,2520.0,2519.9,0.79324]
[1749308862586,0.79322,2520.0,2519.9,0.79324]
[1749308862885,0.79322,2520.0,2519.8,0.79325]
[1749308863582,0.79326,2519.9,2519.7,0.79329]
[1749308863780,7.354,2520.1,2519.5,0.6776]
[1749308863986,0.79334,2519.6,2519.3,3.2078]
[1749308864179,7.354,2520.1,2519.3,3.2078]
[1749308864383,6.82019,2520.1,2520.0,0.79321]
[1749308864573,7.17806927,2520.1,2520.0,0.79321]
[1749308864981,2.45306927,2520.1,2520.0,0.79321]
[1749308865184,0.00596161,2520.2,2520.1,0.79318]
[1749308866677,0.79910161,2520.2,2520.1,0.79318]
[1749308867388,0.00596161,2520.2,2520.1,0.79318]
[1749308868089,0.00596161,2520.2,2520.0,0.79318]
[1749308868285,0.79318,2520.1,2520.0,0.79318]
[1749308868986,0.79327,2519.9,2519.7,0.636]
[1749308869178,0.79327,2519.9,2519.8,0.79327]
[1749308869585,0.79323,2520.0,2519.8,0.79327]
[1749308869790,0.79324,2519.9,2519.8,0.79327]
[1749308869983,0.79323,2520.0,2519.8,0.79327]
[1749308870182,0.79324,2519.9,2519.8,0.79327]
[1749308870382,0.79323,2520.0,2519.9,0.79324]
[1749308870679,0.79324,2519.9,2519.8,0.79325]
[1749308871185,0.79322,2520.0,2519.9,0.79323]
[1749308871390,1.3601,2520.1,2519.6,0.6413]
[1749308871590,0.79323,2520.0,2519.9,0.79323]
[1749308871787,0.79325,2519.9,2519.8,0.79325]
[1749308872180,0.79322,2520.0,2519.9,0.79323]
[1749308872379,1.3601,2520.1,2519.6,0.6413]
[1749308872579,0.69486161,2520.2,2520.1,0.79318]
[1749308873484,1.48800161,2520.2,2520.1,0.79318]
[1749308874890,0.7932,2520.1,2520.0,0.79319]
[1749308875587,1.48802161,2520.2,2520.1,0.79318]
[1749308878894,0.79321,2520.1,2520.0,0.79318]
[1749308879092,0.69486161,2520.2,2519.7,1.3289]
[1749308879297,0.7932,2520.1,2520.0,0.7932]
[1749308879495,1.48803161,2520.2,2520.1,0.79318]
[1749308880501,0.7932,2520.1,2519.7,3.31214]
[1749308880698,0.79324,2520.0,2519.9,0.79322]
[1749308881494,0.7932,2520.1,2520.0,0.79319]
[1749308881997,0.79325,2519.9,2519.8,0.79324]
[1749308882200,0.69486161,2520.2,2519.6,5.83242]
[1749308882402,0.69486161,2520.2,2520.1,0.79318]
[1749308882604,0.00596161,2520.2,2520.1,0.79318]
[1749308883600,3.2078,2520.9,2520.0,2.6669]
[1749308883791,3.2078,2520.5,2520.0,2.6669]
[1749308884099,0.79316,2520.2,2520.1,0.79316]
[1749308884402,4.00086,2520.5,2520.0,4.64989]
[1749308884593,3.21376161,2520.5,2520.4,0.79308]
[1749308884790,0.00596161,2520.5,2520.4,0.79308]
[1749308887304,0.79901161,2520.5,2520.4,0.79308]
[1749308887601,0.00596161,2520.5,2520.4,0.79308]
[1749308889604,0.00596161,2520.5,2520.4,1.42218]
[1749308891001,0.00596161,2520.5,2520.4,2.68108]
[1749308891202,0.00596161,2520.5,2520.4,7.39908]
[1749308891807,0.00596161,2520.5,2520.4,2.68108]
[1749308892005,0.00596161,2520.5,2520.4,7.39908]
[1749308893403,0.00596161,2520.5,2520.4,2.68108]
[1749308893601,0.00596161,2520.5,2520.4,7.39908]
[1749308895099,0.6736,2521.0,2520.9,0.79293]
[1749308895299,0.79287,2521.1,2521.0,0.79288]
[1749308896195,0.6355,2521.1,2520.8,3.2078]
[1749308896399,0.79293,2520.9,2520.8,3.2078]
[1749308896602,0.79293,2520.9,2520.8,4.00076]
[1749308896797,1.2804,2521.0,2520.6,4.717]
[1749308897007,0.79298,2520.8,2520.6,5.51]
[1749308897206,0.79298,2520.8,2520.7,0.79299]
[1749308897801,0.79302,2520.6,2520.5,6.14405]
[1749308898002,0.79302,2520.6,2520.5,5.351]
[1749308898199,0.6355,2520.7,2520.6,0.79302]
[1749308898414,1.42851,2520.7,2520.5,1.42704]
[1749308898709,0.79302,2520.6,2520.5,1.42704]
[1749308898900,0.79302,2520.6,2520.5,0.634]
[1749308899106,0.79302,2520.6,2520.0,0.79916161]
[1749308899107,1.98264,2520.5,2520.0,0.79916161]
[1749308899309,0.79316,2520.2,2520.1,0.79317]
[1749308899718,1.9657,2520.5,2520.1,3.2078]
[1749308900211,0.79312,2520.3,2520.2,0.79313]
[1749308900404,8.9484,2520.5,2520.0,0.00596161]
[1749308900604,0.79318,2520.1,2520.0,0.00596161]
[1749308901503,1.94828904,2520.1,2520.0,0.00596161]
[1749308902111,3.25648904,2520.1,2520.0,0.00596161]
[1749308905607,0.79337,2519.5,2519.4,0.6692]
[1749308905807,0.79337,2519.5,2519.4,0.7934]
[1749308906110,0.79341,2519.4,2519.3,0.79342]
[1749308907205,0.6445,2519.5,2519.4,0.7934]
[1749308907810,0.6445,2519.5,2519.2,4.718]
[1749308907811,0.00596161,2519.6,2519.5,0.79337]
[1749308909710,0.00596161,2519.6,2519.4,0.79339]
[1749308910008,0.00596161,2519.6,2519.5,0.79337]
[1749308912014,0.79929161,2519.6,2519.5,0.79337]
[1749308913412,0.00596161,2519.6,2519.5,0.79337]
[1749308914206,0.00596161,2519.6,2519.5,2.09837]
[1749308916115,0.00596161,2519.6,2519.5,5.30617]
[1749308917402,0.00596161,2519.6,2519.5,10.30617]
[1749308919017,0.00596161,2519.6,2519.5,10.02417]
[1749308921615,0.79929161,2519.6,2519.5,3.2078]
[1749308921821,0.79337,2519.5,2519.4,6.1655]
[1749308922118,0.79932161,2519.6,2519.5,0.79337]
[1749308922320,1.46852161,2519.6,2519.5,0.79337]
[1749308925920,0.67516161,2519.6,2519.5,0.79337]
[1749308927124,0.00596161,2519.6,2519.5,0.79337]
[1749308927820,0.00596161,2519.6,2519.5,2.04877]
[1749308929221,0.00596161,2519.6,2519.5,5.25657]
[1749308943025,0.00596161,2519.6,2519.5,10.25657]
[1749308943227,0.6319,2520.0,2519.9,0.79324]
[1749308943424,3.2078,2520.2,2520.1,0.79318]
[1749308943725,4.99677439,2520.2,2520.1,0.79318]
[1749308944127,0.7931,2520.4,2520.3,0.79311]
[1749308944327,1.84160759,2520.4,2520.3,0.79311]
[1749308944528,0.6848,2520.4,2520.3,0.79311]
[1749308948434,4.00081,2520.7,2520.6,0.79302]
[1749308948635,5.84656535,2520.7,2520.6,0.79302]
[1749308949437,5.84656535,2520.7,2520.5,0.79303]
[1749308949635,4.6914,2520.7,2520.6,0.79302]
[1749308949829,5.84620375,2520.7,2520.6,0.79302]
[1749308950129,4.6914,2520.7,2520.6,0.79302]
[1749308950340,0.79302,2520.6,2520.5,0.79303]
[1749308950531,4.69141,2520.7,2520.5,0.79303]
[1749308950732,6.01111,2520.7,2520.6,0.79302]
[1749308951035,0.79302,2520.6,2520.5,0.79303]
[1749308951838,6.01111,2520.7,2520.5,0.79303]
[1749308952636,6.01111,2520.7,2520.6,0.79302]
[1749308952836,0.79302,2520.6,2520.5,0.79303]
[1749308953639,2.09722,2520.6,2520.5,0.79303]
[1749308954345,4.6914,2520.7,2520.6,0.79302]
[1749308956029,3.8984,2520.7,2520.6,0.79302]
[1749308960540,0.79285,2521.2,2520.6,4.00082]
[1749308960748,1.42685,2521.2,2521.1,0.79286]
[1749308961137,1.902,2521.2,2521.1,0.79286]
[1749308962446,0.634,2521.2,2521.1,0.79286]
[1749308967745,1.42683,2521.2,2521.1,0.79286]
[1749308967945,0.634,2521.2,2521.1,0.79286]
[1749308968147,0.634,2521.2,2521.0,0.79288]
[1749308968346,2.0266,2521.2,2521.1,0.79286]
[1749308968541,2.0266,2521.2,2520.9,3.2078]
[1749308968743,0.79297,2520.8,2520.7,0.79298]
[1749308971051,1.3926,2521.0,2520.5,3.2078]
[1749308971251,1.3585,2520.7,2520.6,0.79302]
[1749308971649,2.7209,2520.7,2520.6,0.79302]
[1749308972844,1.3585,2520.7,2520.6,0.79302]
[1749308975756,1.3585,2520.7,2520.5,3.2078]
[1749308975962,3.52681,2520.7,2520.5,0.79303]
[1749308976653,3.52681,2520.7,2520.6,0.79302]
[1749308976848,3.52681,2520.7,2520.4,0.00596161]
[1749308977247,0.79302,2520.6,2520.4,0.00596161]
[1749308977448,3.52681,2520.7,2520.4,0.00596161]
[1749308978055,3.52681,2520.7,2520.5,0.79303]
[1749308978247,0.79302,2520.6,2520.5,0.79303]
[1749308978447,1.2634,2520.6,2520.5,0.79303]
[1749308978848,2.15151,2520.7,2520.6,0.79302]
[1749308980256,0.79302,2520.6,2520.5,4.00084]
[1749308980957,2.15151,2520.7,2520.6,0.79302]
[1749308981158,0.79302,2520.6,2520.5,4.00084]
[1749308981861,2.15151,2520.7,2520.6,0.79302]
[1749308983861,1.3585,2520.7,2520.6,0.79302]
[1749308986465,0.6952,2520.7,2520.6,0.79302]
[1749308994473,1.48819,2520.7,2520.6,0.79302]
[1749308994669,0.79305,2520.5,2520.4,0.00596161]
[1749308995372,1.94883278,2520.5,2520.4,0.00596161]
[1749308995573,1.4882,2520.7,2520.6,0.79302]
[1749308995776,2.64393875,2520.7,2520.6,0.79302]
[1749308995978,2.64393875,2520.7,2520.5,0.79303]
[1749308996178,0.79302,2520.6,2520.5,0.79303]
[1749308996364,1.94906316,2520.6,2520.5,0.79303]
[1749308996674,1.94906316,2520.6,2520.5,0.79305]
[1749308998072,1.15604316,2520.6,2520.5,0.79305]
[1749308998276,1.94906316,2520.6,2520.5,0.79305]
[1749308998774,0.79331,2519.7,2519.5,0.79334]
[1749308998973,4.673,2520.1,2519.5,3.2078]
[1749308999166,5.8302345,2520.0,2519.9,0.79324]
[1749308999474,4.00096,2520.2,2520.0,0.7932]
[1749308999674,1.94897893,2520.1,2519.9,0.79323]
[1749308999876,0.79319,2520.1,2519.9,0.79324]
[1749309000073,4.00097,2520.2,2519.9,0.79324]
[1749309000275,1.15576645,2520.1,2520.0,0.79321]
[1749309000892,1.94894645,2520.1,2519.9,0.79323]
[1749309001080,0.79323,2520.0,2519.8,5.39136]
[1749309001278,0.79324,2519.9,2519.8,4.00106]
[1749309001578,1.48884,2519.9,2519.8,4.00106]
[1749309002082,1.48884,2519.9,2519.8,3.2078]
[1749309003184,0.79327,2519.8,2519.7,0.00594967]
[1749309004283,2.18187,2519.8,2519.7,0.00594967]
[1749309005072,0.79327,2519.8,2519.7,0.00594967]
[1749309006084,0.79327,2519.8,2519.7,0.79924967]
[1749309006283,1.48886,2519.9,2519.8,0.79327]
[1749309006679,0.6956,2519.9,2519.8,0.79327]
[1749309007280,0.79327,2519.8,2519.7,0.00594967]
[1749309008280,2.09207,2519.8,2519.7,0.00594967]
[1749309009582,3.24303073,2519.8,2519.7,0.00594967]
[1749309010678,0.79343,2519.3,2519.2,3.2078]
[1749309012290,0.79343,2519.3,2519.2,4.00126]
[1749309012483,0.79343,2519.3,2519.2,3.2078]
[1749309013189,2.5517,2519.5,2519.0,0.00594967]
[1749309013190,0.79349,2519.1,2519.0,0.79945967]
[1749309013588,0.79349,2519.1,2519.0,0.00594967]
[1749309013785,0.79349,2519.1,2519.0,0.79946967]
[1749309016097,0.79348,2519.2,2519.1,0.79348]
[1749309016597,0.79349,2519.1,2519.0,0.79944967]
[1749309017498,0.79349,2519.1,2519.0,0.79946967]
[1749309018492,0.79349,2519.1,2519.0,0.00594967]
[1749309022198,1.43399,2519.1,2519.0,0.00594967]
[1749309023789,0.79365,2518.6,2518.5,3.2078]